[Event "15th Paleochora Open 2022"]
[Site "Paleochora"]
[Date "2022.07.18"]
[Round "3.7"]
[White "Grigorov, Grigor"]
[Black "Mitsis, Georgios"]
[Result "1/2-1/2"]
[ECO "A50"]
[WhiteElo "2511"]
[BlackElo "2334"]
[Annotator "TA"]
[PlyCount "29"]
[EventDate "2022.07.17"]
[EventType "swiss"]
[EventCountry "GRE"]
[SourceTitle "playchess.com"]
[Source "ChessBase"]
[SourceQuality "1"]
[TimeControl "40/5400+30:900+30"]

{[%evp 9,29,23,16,16,20,0,0,0,8,0,0,-8,0,-1,0,-2,-6,5,-8,-18,20,23]} 1. d4 {[%emt 0:00:04]} Nf6 {[%emt 0:00:14]} 2. c4 {[%emt 0:00:07]} e6 {[%emt 0:00:20]} 3. Bf4 {[%emt 0:00:06]} Bb4+ {[%emt 0:01:40]} 4. Nd2 {[%emt 0:00:09]} O-O {[%emt 0:14:58]} 5. a3 {[%emt 0:00:34]} Bxd2+ {[%emt 0:00:40]} 6. Qxd2 {[%emt 0:00:11] [#] The position is equal. A50: Queen's Fianchetto Defence (1 d4 Nf6 2 c4 b6).} d6 $146 {[%emt 0:00:08]} ({Predecessor:} 6... d5 7. e3 b6 8. Qc2 dxc4 9. Bxc4 Ba6 10. Nf3 Qe7 11. Bxa6 Nxa6 12. Qc4 Nb8 13. Qxc7 Qxc7 14. Bxc7 {1-0 (40) Muratoglu,S (1942)-Schramek,K (1569) Bled 2018}) 7. Nf3 {[%emt 0:01:56]} Nbd7 {[%emt 0:00:31]} 8. e3 {[%emt 0:05:07]} Qe7 {[%emt 0:01:20]} 9. Qc2 {[%emt 0:01:55]} b6 {[%emt 0:03:29]} 10. Bg5 {[%emt 0:04:51][%cal Bf4g5,Bg5h4,Bh4g3][%mdl 32]} h6 {[%emt 0:02:21]} 11. Bh4 {[%emt 0:01:54]} Bb7 {[%emt 0:02:27]} 12. Be2 {[%emt 0:01:34]} g5 {[%emt 0:03:21]} 13. Bg3 {[%emt 0:01:50]} Ne4 {[%emt 0:00:14]} 14. Nd2 {[%emt 0:01:28]} f5 {[%emt 0:02:09]} 15. f3 {[%emt 0:03:02] A rather calm draw.  Weighted Error Value: White=0.06 (flawless) /Black=0.05 (flawless)} 1/2-1/2

[Event "15th Paleochora Open 2022"]
[Site "Paleochora"]
[Date "2022.07.18"]
[Round "3.8"]
[White "Yankelevich, Lev"]
[Black "Demchenko, Svitlana"]
[Result "1/2-1/2"]
[ECO "E01"]
[WhiteElo "2496"]
[BlackElo "2122"]
[Annotator "TA"]
[PlyCount "79"]
[EventDate "2022.07.17"]
[EventType "swiss"]
[EventCountry "GRE"]
[SourceTitle "playchess.com"]
[Source "ChessBase"]
[SourceQuality "1"]
[TimeControl "40/5400+30:900+30"]

{[%evp 9,79,42,37,31,23,0,4,8,8,18,15,0,12,7,7,0,0,0,6,-32,-35,-79,-31,-34,-38,-41,-33,-46,-44,-72,-43,-56,-48,-45,-47,-44,-11,-10,-4,-21,-16,-41,0,-30,-10,-10,-6,-6,-8,-12,0,0,0,0,0,0,0,0,18,0,0,0,0,0,0,0,0,0,0,0,0,0]} 1. d4 {[%emt 0:00:02]} d5 {[%emt 0:00:06]} 2. c4 {[%emt 0:01:00]} e6 {[%emt 0:00:05]} 3. Nf3 {[%emt 0:00:28]} Nf6 {[%emt 0:00:10]} 4. g3 {[%emt 0:00:51]} h6 {[%emt 0:00:43]} 5. Bg2 {[%emt 0:02:10]} Bd6 {[%emt 0:00:09]} 6. O-O {[%emt 0:00:08] E01: Catalan: Early deviations.} O-O {[%emt 0:00:12]} 7. c5 {[%emt 0:01:18]} Be7 {[%emt 0:00:08] [#]} 8. b4 $146 {[%emt 0:00:04]} ({Predecessor:} 8. Nbd2 Nc6 9. Nb3 a5 10. a4 b6 11. cxb6 cxb6 12. Bf4 Ba6 13. Re1 Bb4 14. Bd2 Bxd2 15. Nbxd2 {0-1 (26) Dumont,G (1677)-Beck,G (1999) ICCF email 2016}) 8... Nc6 {[%emt 0:01:45]} 9. a3 {[%emt 0:11:10]} b6 {[%emt 0:00:38]} 10. Bb2 {[%emt 0:06:55]} Ne4 {[%emt 0:04:42]} 11. Nbd2 {[%emt 0:07:01]} Rb8 {[%emt 0:06:29]} 12. cxb6 {[%emt 0:03:39]} cxb6 {[%emt 0:02:48]} 13. Rc1 {[%emt 0:11:27]} Bb7 {[%emt 0:01:48]} 14. Nb3 {[%emt 0:00:55]} Nd6 {[%emt 0:04:26]} 15. Nfd2 {[%emt 0:01:19]} Bf6 {[%emt 0:04:08]} (15... a5 $17 16. bxa5 Nxa5) 16. Re1 $15 {[%emt 0:00:53]} Qd7 {[%emt 0:01:30]} 17. e3 {[%emt 0:00:23]} Rbc8 {[%emt 0:03:14]} 18. Bf1 {[%emt 0:04:36]} Ne7 {[%emt 0:02:16]} 19. Na1 {[%emt 0:05:53]} Bc6 {[%emt 0:06:39]} 20. Bd3 {[%emt 0:01:50]} Rfd8 {[%emt 0:05:42]} 21. Qe2 {[%emt 0:02:29]} Bb5 {[%emt 0:06:20]} 22. Bxb5 {[%emt 0:00:55]} Qxb5 {[%emt 0:00:16]} 23. Qxb5 {[%emt 0:00:09]} Nxb5 {[%emt 0:00:05]} 24. Kf1 {[%emt 0:00:03]} Nd6 {[%emt 0:01:29]} 25. Ke2 {[%emt 0:02:05]} Nc4 {[%emt 0:05:13]} 26. Rc2 {[%emt 0:00:09]} Nxb2 {[%emt 0:02:36]} 27. Rxb2 {[%emt 0:00:03] The position is equal.} e5 {[%emt 0:00:06]} 28. dxe5 {[%emt 0:01:08]} Bxe5 {[%emt 0:00:06]} 29. Rc2 {[%emt 0:00:04]} d4 {[%emt 0:04:22] [#] Hoping for ...d3+.} 30. Rxc8 {[%emt 0:02:12]} d3+ {[%emt 0:01:23]} ({Don't do} 30... Rxc8 31. Nf3 f6 32. Nxd4 $14) 31. Kf3 {[%emt 0:00:30]} Nxc8 {[%emt 0:00:30][%cal Be7c8,Bc8d6,Bd6c4,Bc4b2][%mdl 32]} 32. Nab3 {[%emt 0:00:41]} Nd6 {[%emt 0:01:00]} 33. Rd1 {[%emt 0:05:32]} Bf6 {[%emt 0:04:02]} 34. Ne4 {[%emt 0:10:41]} Nc4 $1 {[%emt 0:02:28]} 35. Nxf6+ {[%emt 0:00:17]} gxf6 {[%emt 0:00:01]} 36. Nd4 {[%emt 0:00:05]} Nb2 {[%emt 0:06:01]} 37. Rd2 {[%emt 0:00:32]} Nc4 {[%emt 0:00:04][%csl LRa3,LRd2]} 38. Rd1 {[%emt 0:04:57]} Nb2 {[%emt 0:00:24]} 39. Rd2 {[%emt 0:00:19]} Nc4 {[%emt 0:00:04][%csl LRa3,LRd2]} 40. Rd1 {[%emt 0:00:00] Weighted Error Value: White=0.09 (flawless) /Black=0.07 (flawless)} 1/2-1/2

[Event "15th Paleochora Open 2022"]
[Site "Paleochora"]
[Date "2022.07.18"]
[Round "3.9"]
[White "Giannoulakis, Lampros"]
[Black "Hamitevici, Vladimir"]
[Result "0-1"]
[ECO "A61"]
[WhiteElo "2346"]
[BlackElo "2473"]
[Annotator "TA"]
[PlyCount "109"]
[EventDate "2022.07.17"]
[EventType "swiss"]
[EventCountry "GRE"]
[SourceTitle "playchess.com"]
[Source "ChessBase"]
[SourceQuality "1"]
[TimeControl "40/5400+30:900+30"]

{[%evp 13,109,39,55,22,18,21,27,23,25,18,35,20,27,34,25,20,29,0,10,17,29,0,0,-8,0,-39,-37,-47,-43,-67,-51,-93,-83,-95,-84,-78,-107,-87,-97,-86,-71,-181,-111,-206,-186,-184,-186,-241,-166,-159,-86,-211,-193,-231,-243,-896,-153,-151,-139,-101,-130,-247,-246,-234,-153,-427,-209,-223,-206,-420,-299,-618,-616,-611,-601,-961,-962,-862,-890,-841,-820,-1156,-1077,-1004,-335,-816,-800,-7634,-5683,-5591,-5449,-1166,-3937,-4975,-4546,-29958,-12391,-5073]} 1. d4 {[%emt 0:00:09]} Nf6 {[%emt 0:01:18]} 2. c4 {[%emt 0:00:04]} c5 {[%emt 0:02:13]} 3. d5 {[%emt 0:00:12]} e6 {[%emt 0:00:55]} 4. Nc3 {[%emt 0:00:08]} exd5 {[%emt 0:00:06]} 5. cxd5 {[%emt 0:00:05]} d6 {[%emt 0:00:04]} 6. Nf3 {[%emt 0:00:14]} g6 {[%emt 0:00:08]} 7. Bf4 {[%emt 0:00:09]} Bg7 {[%emt 0:02:45]} 8. h3 {[%emt 0:06:04] A61: Modern Benoni: Nf3 without early e4.} O-O {[%emt 0:00:29][%cal Ob7b5]} 9. e3 {[%emt 0:05:00]} Ne8 {[%emt 0:02:01]} 10. Be2 {[%emt 0:03:33] White has an edge.} Nd7 {[%emt 0:00:20]} 11. O-O {[%emt 0:00:15]} Ne5 {[%emt 0:01:41]} 12. Bxe5 {[%emt 0:03:41]} Bxe5 {[%emt 0:01:14]} 13. Nxe5 {[%emt 0:00:12]} dxe5 {[%emt 0:00:03] [#]} 14. a4 $146 {[%emt 0:10:42]} ({Predecessor:} 14. Rc1 Nd6 15. Nb5 b6 16. Nxd6 Qxd6 17. e4 f5 18. f3 Bd7 19. Qd2 f4 20. Qc3 {½-½ (126) Elissalt Cardenas,H (2279)-Nastore,P (2234) Chess.com INT 2021}) 14... Nd6 {[%emt 0:04:33]} 15. Qd2 {[%emt 0:04:02]} Bd7 {[%emt 0:03:25]} 16. e4 {[%emt 0:05:58]} Qb6 {[%emt 0:08:36]} 17. f4 {[%emt 0:07:56]} c4+ {[%emt 0:01:52]} 18. Kh1 {[%emt 0:05:07]} Qd4 {[%emt 0:01:05]} 19. Qe1 {[%emt 0:17:13]} (19. Qc1 $5 {[%cal Rf1d1]} Nxe4 20. Nxe4 Qxe4 21. Qxc4 Qxc4 22. Bxc4 $11) 19... exf4 {[%emt 0:02:35]} (19... Nxe4 $2 20. Rd1 Nd6 21. Rxd4 $18) 20. Rxf4 {[%emt 0:00:08]} Rae8 {[%emt 0:09:58]} 21. Qg3 {[%emt 0:03:35]} b6 {[%emt 0:08:07]} 22. Rd1 {[%emt 0:02:45]} Qe5 {[%emt 0:00:20]} 23. Rdf1 {[%emt 0:01:03]} a6 $1 {[%emt 0:02:30][%cal Ba7a6,Ba6b5,Bb5b4,Bb4b3][%mdl 32]} 24. Qf2 {[%emt 0:01:07]} b5 {[%emt 0:01:24]} 25. axb5 {[%emt 0:02:09]} axb5 {[%emt 0:00:02]} 26. Qc5 {[%emt 0:01:29]} f5 {[%emt 0:14:44]} 27. h4 {[%emt 0:04:14]} (27. Kg1 $17) 27... Rf7 {[%emt 0:02:10]} (27... fxe4 28. Rxf8+ Rxf8 29. Rxf8+ Kxf8 30. Nxe4 Qxe4 31. Qxd6+ Ke8 32. Qb8+ Kf7 33. Qa7 Qxh4+ 34. Kg1 $17) ({Black should try} 27... Rb8 $19 {...b4 is the strong threat.} 28. Qb4 fxe4 29. Rxf8+ Rxf8 30. Rxf8+ Kxf8 31. Nxe4 Qxe4 32. Qxd6+ Ke8 33. Qb8+ Kf7) 28. Bd1 {[%emt 0:13:22] [#]} (28. Kg1 $17 {was called for.}) 28... Rb8 $1 $19 {[%emt 0:04:25] And now ...b4 would win.} ({And not} 28... fxe4 29. Rxf7 Nxf7 30. Nxb5 $17) 29. Bc2 {[%emt 0:01:55]} b4 {[%emt 0:02:13]} 30. Nd1 {[%emt 0:00:02]} (30. Ne2 $142) 30... b3 {[%emt 0:01:22]} ({Stronger than} 30... fxe4 31. Rxf7 Nxf7 32. Qa7 $17) 31. Bb1 {[%emt 0:00:09]} Rc8 {[%emt 0:01:30]} (31... fxe4 $142 32. Rxf7 Nxf7) 32. Qf2 {[%emt 0:00:22]} (32. Qe3 $17) 32... Rcf8 {[%emt 0:00:18][%cal Rf5e4]} 33. exf5 {[%emt 0:01:03]} Bxf5 {[%emt 0:00:57]} (33... Nxf5 34. Kg1) (33... Qxd5 34. f6 $11) 34. Re1 $2 {[%emt 0:01:11]} (34. Qe3 Qxd5 35. Nc3) 34... Qxd5 $2 {[%emt 0:10:48]} (34... Be4 $19 {and Black stays clearly on top.} 35. Rxf7 Rxf7) 35. Ne3 {[%emt 0:00:03]} Qc5 $36 {[%emt 0:01:03][%mdl 2048] White must now prevent ...Bxb1. White is under strong pressure. Black is much more active.} 36. Bxf5 {[%emt 0:00:15]} gxf5 {[%emt 0:02:33]} 37. Qg3+ {[%emt 0:01:08]} (37. Re2 $17 {is a better defense.}) 37... Rg7 {[%emt 0:00:51]} 38. Qf3 {[%emt 0:00:04][%cal Oe3c4]} Re8 {[%emt 0:00:12]} 39. Kh2 $2 {[%emt 0:00:45]} (39. Re2 $17 Rg6 40. Nxc4 Rxe2 41. Qxe2) 39... Rge7 {[%emt 0:04:46]} (39... Kh8 $142 40. Re2 Rge7 41. Nxf5 Rxe2) 40. Qg3+ {[%emt 0:00:00] [#]} Kh8 $1 {[%emt 0:00:00]} 41. Rf3 {[%emt 0:11:50]} (41. Nxf5 {was the only chance.} Nxf5 42. Qc3+ Kg8 43. Rxe7 Rxe7 44. Qf6) 41... Qe5 {[%emt 0:06:09]} 42. Rd1 $2 {[%emt 0:00:48]} (42. Qxe5+ Rxe5 43. Rd1) 42... Qxg3+ {[%emt 0:02:10]} 43. Kxg3 {[%emt 0:00:04] [#]} c3 $1 {[%emt 0:05:58][%cal Bc4c3,Bc3b2][%mdl 32]} 44. Rxd6 {[%emt 0:00:28]} (44. bxc3 Ne4+) 44... cxb2 {[%emt 0:00:08]} ({Weaker is} 44... Rxe3 45. bxc3 Rg8+ 46. Kf2 Rxf3+ 47. Kxf3 $15) 45. Rd1 {[%emt 0:00:09]} Rxe3 {[%emt 0:00:11]} 46. Rb1 {[%emt 0:00:06]} Rxf3+ {[%emt 0:00:31]} 47. Kxf3 {[%emt 0:00:05][%mdl 4096] Endgame KR-KR} Rb8 {[%emt 0:00:13]} 48. Ke3 {[%emt 0:02:28]} Rb4 $2 {[%emt 0:02:37]} (48... Kg7 49. Kd3 Kh6) 49. Rxb2 $2 {[%emt 0:00:13]} (49. Kd3 Rxh4 50. Rxb2) 49... Kg7 {[%emt 0:00:17]} 50. Kd3 {[%emt 0:00:55]} Kg6 {[%emt 0:00:17]} 51. Kc3 {[%emt 0:00:15]} Rb7 {[%emt 0:00:37]} 52. Kd2 {[%emt 0:02:37]} Kh5 {[%emt 0:00:08]} 53. Kc1 {[%emt 0:00:11]} Kxh4 {[%emt 0:00:11] aiming for ...f4.} 54. Rd2 {[%emt 0:00:15]} b2+ {[%emt 0:00:09]} 55. Kb1 {[%emt 0:00:03] Weighted Error Value: White=0.96/Black=0.29 (precise)} 0-1

[Event "15th Paleochora Open 2022"]
[Site "Paleochora"]
[Date "2022.07.18"]
[Round "3.10"]
[White "Leniart, Arkadiusz"]
[Black "Georgiadis, Anastasios"]
[Result "0-1"]
[ECO "C07"]
[WhiteElo "2473"]
[BlackElo "1701"]
[Annotator "TA"]
[PlyCount "122"]
[EventDate "2022.07.17"]
[EventType "swiss"]
[EventCountry "GRE"]
[SourceTitle "playchess.com"]
[Source "ChessBase"]
[SourceQuality "1"]
[TimeControl "40/5400+30:900+30"]

{[%evp 14,122,28,27,31,19,23,11,13,14,12,7,0,0,-6,-7,0,0,5,0,12,0,12,10,17,14,331,9,7,0,0,-6,-17,-8,30,34,40,21,24,25,18,20,29,-81,-89,-84,-92,-100,-80,-189,-79,-80,-74,-76,-72,-74,-56,-75,-43,-42,-27,-31,-18,-31,-23,-43,-31,-30,-18,-49,-52,-47,-18,-40,0,-58,0,-42,-21,-38,-8,-12,-7,0,0,0,8,0,0,0,0,-421,-403,-349,-342,-600,-580,-537,-487,-5522,-5097,-29977,-29978,-29975,-29976,-29979,-29980,-29987,-29988,-29988,-29989]} 1. e4 {[%emt 0:00:05]} e6 {[%emt 0:00:08]} 2. d4 {[%emt 0:00:18]} d5 {[%emt 0:00:04]} 3. Nd2 {[%emt 0:00:05]} c5 {[%emt 0:00:07]} 4. exd5 {[%emt 0:00:26]} Qxd5 {[%emt 0:00:08]} 5. Ngf3 {[%emt 0:00:24]} cxd4 {[%emt 0:00:26]} 6. Bc4 {[%emt 0:00:32]} Qd8 {[%emt 0:00:12]} 7. O-O {[%emt 0:01:22]} Nc6 {[%emt 0:00:44]} 8. Nb3 {[%emt 0:00:32][%cal Rb3d4]} a6 {[%emt 0:01:43] C07: French Tarrasch: 3...c5, 4 Ngf3 and 4 exd5 Qxd5.} 9. Nbxd4 {[%emt 0:01:53]} Nxd4 {[%emt 0:01:23]} 10. Nxd4 {[%emt 0:00:14]} Qc7 {[%emt 0:00:14] The position is equal.} 11. Bb3 {[%emt 0:06:53]} Bd6 {[%emt 0:02:10]} 12. Kh1 {[%emt 0:02:09]} Ne7 {[%emt 0:03:03]} 13. c3 {[%emt 0:03:08]} O-O {[%emt 0:02:17]} 14. Qh5 {[%emt 0:03:18] [#]} e5 $146 {[%emt 0:06:13]} ({Predecessor:} 14... Ng6 15. Be3 Nf4 16. Qf3 Bd7 17. Rad1 Rad8 18. Rfe1 Bc8 19. Bc2 Rfe8 20. Bc1 Ng6 {½-½ (57) Bratovic,B (2327)-Sebenik,M (2549) Maribor 2017}) 15. Ne2 {[%emt 0:02:33]} ({Wrong is} 15. Bc2 $2 g6 16. Qh4 exd4 $19) 15... Bf5 {[%emt 0:05:39]} 16. Ng3 {[%emt 0:02:46]} Bg6 {[%emt 0:00:31]} 17. Qe2 {[%emt 0:06:18]} Qc6 {[%emt 0:09:36]} 18. Bg5 {[%emt 0:06:02]} Rae8 {[%emt 0:04:45]} 19. Rad1 {[%emt 0:06:16]} Bb8 $2 {[%emt 0:05:23][%mdl 8192]} (19... Kh8 $11) 20. Qg4 $2 {[%emt 0:10:10]} (20. Bxe7 $18 Rxe7 21. f4) 20... h6 $11 {[%emt 0:07:14]} 21. Be3 {[%emt 0:07:40]} Rd8 {[%emt 0:05:05]} 22. Qc4 {[%emt 0:08:03]} Qxc4 {[%emt 0:06:01]} 23. Bxc4 {[%emt 0:00:04]} Nc8 {[%emt 0:01:04]} 24. Bd5 $1 {[%emt 0:02:41]} Rd7 {[%emt 0:02:28]} 25. Rd2 {[%emt 0:03:15]} Ba7 {[%emt 0:04:09]} 26. Bxa7 {[%emt 0:05:06]} Nxa7 {[%emt 0:00:03]} 27. Rfd1 {[%emt 0:00:11]} Re8 {[%emt 0:04:39]} 28. Ne4 {[%emt 0:01:28] [#]} (28. Kg1 $11) 28... Rxd5 $1 $17 {[%emt 0:01:17]} 29. Rxd5 {[%emt 0:02:21] And now Nc5 would win.} Bxe4 {[%emt 0:00:04]} 30. Rd8 {[%emt 0:00:10]} Kf8 {[%emt 0:01:10]} 31. Rxe8+ {[%emt 0:00:03]} Kxe8 {[%emt 0:00:18]} 32. Re1 {[%emt 0:00:03]} Bg6 {[%emt 0:01:10]} 33. Rxe5+ {[%emt 0:00:06]} Kd7 {[%emt 0:00:12]} 34. Re1 {[%emt 0:01:11]} Nc6 {[%emt 0:01:13]} 35. f4 {[%emt 0:00:28]} b5 {[%emt 0:01:16]} 36. g4 {[%emt 0:00:36]} f5 {[%emt 0:01:08]} 37. h3 {[%emt 0:00:26]} h5 {[%emt 0:01:20]} 38. gxh5 {[%emt 0:01:58]} Bxh5 {[%emt 0:00:13]} 39. Rg1 {[%emt 0:00:44]} g6 {[%emt 0:00:04]} 40. Kg2 {[%emt 0:00:00]} Ne7 {[%emt 0:00:00]} 41. Re1 {[%emt 0:01:07]} Nd5 {[%emt 0:05:35]} 42. Kg3 {[%emt 0:00:04]} Nb6 {[%emt 0:01:32]} 43. Kf2 {[%emt 0:03:49]} Nd5 {[%emt 0:00:57]} 44. Kg3 {[%emt 0:00:05]} Nb6 {[%emt 0:00:07]} (44... Nf6 $15) 45. Re3 {[%emt 0:12:24]} Nc4 {[%emt 0:02:12][%csl LRb2,LRe3]} 46. Rd3+ {[%emt 0:00:03]} Ke7 {[%emt 0:00:45]} 47. b3 {[%emt 0:00:08]} Nd6 {[%emt 0:00:42]} 48. Kf2 {[%emt 0:00:25]} Ne4+ {[%emt 0:01:34]} 49. Ke3 {[%emt 0:00:10]} g5 {[%emt 0:01:39]} 50. Rd5 {[%emt 0:06:03]} Ke6 {[%emt 0:03:37]} 51. c4 {[%emt 0:00:58]} Nc3 {[%emt 0:01:31][%csl LRa2,LRd5]} 52. Re5+ {[%emt 0:03:43][%mdl 8192]} (52. Rd8 $11 {and White stays safe.}) 52... Kf6 $19 {[%emt 0:00:44]} 53. cxb5 {[%emt 0:00:56]} axb5 {[%emt 0:01:49] Threatens to win with ...gxf4+.} 54. Rc5 $2 {[%emt 0:02:03]} (54. a4 gxf4+ 55. Kxf4 Ne2+ 56. Rxe2 Bxe2 57. axb5 Bxb5 58. h4) 54... Nd1+ {[%emt 0:02:15]} 55. Kd2 {[%emt 0:00:05]} gxf4 {[%emt 0:01:17][%cal Bg5f4,Bf4f3,Bf3f2][%mdl 32] ...f3! is the strong threat.} 56. a4 {[%emt 0:01:27] [#]} (56. Rc1 $142 Nf2 57. a4 bxa4 58. bxa4 Ne4+ 59. Kd3) 56... f3 $1 {[%emt 0:01:54] ( -> ...f2)} 57. Ke1 {[%emt 0:00:04]} (57. Rc6+ Kg5) 57... f2+ {[%emt 0:00:16] Black mates.} 58. Kf1 {[%emt 0:00:03]} Kg5 {[%emt 0:02:49]} 59. axb5 {[%emt 0:02:14]} Kf4 {[%emt 0:00:45]} 60. b6 {[%emt 0:01:03]} Kg3 {[%emt 0:01:06][%cal Rd1e3]} 61. Re5 {[%emt 0:00:22]} Bf3 {[%emt 0:00:23] Weighted Error Value: White=0.60/Black=0.20 (precise)} 0-1

[Event "15th Paleochora Open 2022"]
[Site "Paleochora"]
[Date "2022.07.18"]
[Round "3.11"]
[White "Hristodoulou, Panagiotis"]
[Black "Nevednichy, Vladislav"]
[Result "1/2-1/2"]
[ECO "B62"]
[WhiteElo "2330"]
[BlackElo "2473"]
[Annotator "TA"]
[PlyCount "31"]
[EventDate "2022.07.17"]
[EventType "swiss"]
[EventCountry "GRE"]
[SourceTitle "playchess.com"]
[Source "ChessBase"]
[SourceQuality "1"]
[TimeControl "40/5400+30:900+30"]

{[%evp 18,31,6,16,16,31,24,2,5,0,29,24,48,44,44,-6]} 1. e4 {[%emt 0:00:04]} c5 {[%emt 0:00:05]} 2. Nf3 {[%emt 0:00:12]} d6 {[%emt 0:00:19]} 3. d4 {[%emt 0:00:19]} cxd4 {[%emt 0:00:03]} 4. Nxd4 {[%emt 0:00:05]} Nf6 {[%emt 0:00:03]} 5. Nc3 {[%emt 0:00:14]} Nc6 {[%emt 0:00:05]} 6. Bg5 {[%emt 0:01:00]} e6 {[%emt 0:00:06]} 7. Bb5 {[%emt 0:00:32]} Bd7 {[%emt 0:00:21]} 8. Bxc6 {[%emt 0:00:20]} bxc6 {[%emt 0:00:05]} 9. Qf3 {[%emt 0:00:09]} e5 {[%emt 0:08:40]} 10. Nf5 {[%emt 0:00:15]} h6 {[%emt 0:05:16] B62: Sicilian: Richter-Rauzer: 6...e6: Unusual White 7th moves.} 11. Bh4 {[%emt 0:01:06]} ({Reject} 11. Bxf6 Qxf6 12. Ne3 Qxf3 13. gxf3 Be7 $15) 11... Bxf5 {[%emt 0:08:36]} 12. Qxf5 {[%emt 0:00:12]} Be7 {[%emt 0:00:14] was the old line (12...Qd7).} 13. O-O-O {[%emt 0:00:20]} O-O {[%emt 0:00:18]} 14. Rd3 {[%emt 0:02:41] [#]} Nh7 $146 {[%emt 0:11:00]} ({Predecessor:} 14... g6 15. Qf3 Nh5 16. Bxe7 Qxe7 17. Rhd1 Rfd8 18. g3 Rd7 19. Qe3 Kg7 20. f4 Nf6 21. fxe5 Qxe5 22. Qf4 Rad8 23. Qxe5 dxe5 24. Rxd7 Rxd7 25. Rxd7 {½-½ (25) Tucan,A (2000)-Horvat,M (2215) ICCF email 2007}) 15. Bxe7 {[%emt 0:07:28]} Qxe7 {[%emt 0:00:04]} 16. h4 {[%emt 0:00:37] Weighted Error Value: White=0.01 (flawless) /Black=0.09 (flawless)} (16. Rhd1 $14) 1/2-1/2

[Event "15th Paleochora Open 2022"]
[Site "Paleochora"]
[Date "2022.07.18"]
[Round "3.12"]
[White "Bombek, Peter"]
[Black "Spyropoulos, Nikolaos"]
[Result "0-1"]
[ECO "A45"]
[WhiteElo "2091"]
[BlackElo "2446"]
[Annotator "TA"]
[PlyCount "42"]
[EventDate "2022.07.17"]
[EventType "swiss"]
[EventCountry "GRE"]
[SourceTitle "playchess.com"]
[Source "ChessBase"]
[SourceQuality "1"]
[TimeControl "40/5400+30:900+30"]

{[%evp 9,42,-7,0,0,-4,-4,0,0,0,-7,-10,-18,-2,-1,0,-53,-30,-27,-44,-143,-54,-82,-37,-179,-166,-329,-333,-647,-644,-625,-623,-859,-862,-1040,-1025]} 1. d4 {[%emt 0:00:05]} Nf6 {[%emt 0:01:57]} 2. Bg5 {[%emt 0:00:08]} c5 {[%emt 0:00:11]} 3. d5 {[%emt 0:00:18]} Ne4 {[%emt 0:00:07]} 4. Bc1 {[%emt 0:01:37]} e6 {[%emt 0:06:40]} 5. c4 {[%emt 0:04:46]} Be7 {[%emt 0:11:06] [#]} 6. Nd2 $146 {[%emt 0:03:40] A45: Trompowsky Attack.} ({Predecessor:} 6. e3 Qa5+ 7. Bd2 Nxd2 8. Qxd2 Qxd2+ 9. Kxd2 exd5 10. cxd5 Na6 11. Bxa6 bxa6 12. Kc2 {½-½ (37) Alves Fernandez,S-Devine,G (2126) ICCF email 2015}) 6... exd5 {[%emt 0:03:23]} 7. cxd5 {[%emt 0:02:23]} Nxd2 {[%emt 0:00:31]} 8. Bxd2 {[%emt 0:01:18] The position is equal.} O-O {[%emt 0:00:31]} 9. e4 {[%emt 0:06:07]} Bf6 {[%emt 0:09:06]} 10. Qc2 {[%emt 0:01:58]} d6 {[%emt 0:00:18]} 11. Bd3 {[%emt 0:02:05]} Nd7 {[%emt 0:06:48]} 12. f4 {[%emt 0:06:51] Inhibits Ne5.} (12. Nf3 $11) 12... b5 {[%emt 0:17:48]} 13. e5 $1 {[%emt 0:12:14]} dxe5 {[%emt 0:03:45]} 14. Bxh7+ {[%emt 0:07:06]} Kh8 {[%emt 0:00:03] [#] Hoping for ...exf4.} 15. Be4 $1 {[%emt 0:00:59]} exf4 {[%emt 0:03:38] And now ...Re8 would win.} 16. Bxf4 {[%emt 0:01:16] Now White is beyond hope.} ({White should play} 16. Nf3 $15) 16... Re8 $19 {[%emt 0:04:35] Threatens to win with ...Qe7.} 17. O-O-O $2 {[%emt 0:01:51]} (17. Nf3 Bxb2 18. Rd1 Bc3+ 19. Kf2) 17... Nb6 {[%emt 0:04:10][%cal Bd7b6,Bb6c4,Bc4d6][%mdl 32]} 18. Kb1 {[%emt 0:09:58] [#]} (18. Re1 Bf5 19. Nf3 Rxe4 20. Rxe4) 18... Nc4 {[%emt 0:02:38] Black is clearly winning.} 19. Bc1 {[%emt 0:00:25]} Nd6 {[%emt 0:00:07]} 20. Re1 {[%emt 0:05:22]} Rxe4 {[%emt 0:00:10]} 21. Rxe4 {[%emt 0:00:22]} Bf5 {[%emt 0:00:05][%mdl 64] Pin.  Weighted Error Value: White=0.70/Black=0.01 (flawless)} 0-1

[Event "15th Paleochora Open 2022"]
[Site "Paleochora"]
[Date "2022.07.18"]
[Round "3.13"]
[White "Alexiadis, Hristos"]
[Black "Banikas, Hristos"]
[Result "1/2-1/2"]
[ECO "E08"]
[WhiteElo "2283"]
[BlackElo "2598"]
[Annotator "TA"]
[PlyCount "27"]
[EventDate "2022.07.17"]
[EventType "swiss"]
[EventCountry "GRE"]
[SourceTitle "playchess.com"]
[Source "ChessBase"]
[SourceQuality "1"]
[TimeControl "40/5400+30:900+30"]

{[%evp 25,27,0,28,-9]} 1. d4 {[%emt 0:00:02]} Nf6 {[%emt 0:00:14]} 2. c4 {[%emt 0:00:05]} e6 {[%emt 0:00:05]} 3. g3 {[%emt 0:00:04]} Bb4+ {[%emt 0:00:10]} 4. Bd2 {[%emt 0:00:04]} Be7 {[%emt 0:00:04]} 5. Bg2 {[%emt 0:00:07]} d5 {[%emt 0:00:03]} 6. Nf3 {[%emt 0:00:06]} O-O {[%emt 0:00:06]} 7. O-O {[%emt 0:00:04]} Nbd7 {[%emt 0:00:09]} 8. Qc2 {[%emt 0:00:05]} c6 {[%emt 0:00:06]} 9. Bf4 {[%emt 0:00:04]} b6 {[%emt 0:00:09]} 10. b3 {[%emt 0:00:12] [#]} Nh5 $146 {[%emt 0:00:47]} ({Predecessor:} 10... Ba6 11. Rd1 Rc8 12. Nc3 h6 13. h3 Nh5 14. Bc1 Nhf6 15. Bb2 Qc7 16. a4 Rfd8 17. Nd2 c5 18. Nb5 Qb8 19. e4 dxe4 20. Nxe4 cxd4 21. Bxd4 Nxe4 22. Qxe4 {½-½ (55) Sargissian,G (2691)-Giri,A (2758) Linares 2014}) 11. Bc1 {[%emt 0:00:06]} Nhf6 {[%emt 0:00:03]} 12. Bf4 {[%emt 0:00:05]} Nh5 {[%emt 0:00:08]} 13. Bc1 {[%emt 0:00:06]} Nhf6 {[%emt 0:00:03]} 14. Bf4 {[%emt 0:00:06] Not much happened in this game. E08: Closed Catalan: Main Line: 7 Qc2.} 1/2-1/2